[Event "Titled Tuesday Blitz May 4 2021"]
[White "Jian, Alex"]
[Black "Golubev, Mikhail"]
[WhiteFideId "30901022"]
[BlackFideId "14100983"]
[WhiteElo "2084"]
[BlackElo "2374"]
[Result "1/2-1/2"]
[Round "08"]
[TimeControl "180+1"]
[Date "2021.05.04"]
[WhiteClock "0:00:05"]
[BlackClock "0:00:04"]

1. d4 {[%clk 0:03:00]}  g6 {[%clk 0:02:55]} 2. c4 {[%clk 0:03:00]}  Bg7 {[%clk 0:02:55]} 3. Nf3 {[%clk 0:03:00]}  d6 {[%clk 0:02:55]} 4. Nc3 {[%clk 0:03:01]}  Nf6 {[%clk 0:02:54]} 5. e4 {[%clk 0:03:00]}  O-O {[%clk 0:02:55]} 6. Be2 {[%clk 0:03:00]}  e5 {[%clk 0:02:55]} 7. d5 {[%clk 0:03:01]}  a5 {[%clk 0:02:52]} 8. Bg5 {[%clk 0:03:00]}  h6 {[%clk 0:02:49]} 9. Bh4 {[%clk 0:03:01]}  Na6 {[%clk 0:02:49]} 10. Nd2 {[%clk 0:03:00]}  Bd7 {[%clk 0:02:43]} 11. O-O {[%clk 0:02:59]}  Qe8 {[%clk 0:02:41]} 12. b3 {[%clk 0:02:59]}  Nh7 {[%clk 0:02:38]} 13. a3 {[%clk 0:02:58]}  h5 {[%clk 0:02:38]} 14. f3 {[%clk 0:02:58]}  Bh6 {[%clk 0:02:39]} 15. Kh1 {[%clk 0:02:59]}  Be3 {[%clk 0:02:36]} 16. Rb1 {[%clk 0:02:58]}  Bc5 {[%clk 0:02:23]} 17. Qc1 {[%clk 0:02:58]}  f5 {[%clk 0:02:13]} 18. exf5 {[%clk 0:02:34]}  gxf5 {[%clk 0:02:12]} 19. Bd3 {[%clk 0:02:23]}  Be3 {[%clk 0:01:52]} 20. Qc2 {[%clk 0:02:18]}  Nc5 {[%clk 0:01:45]} 21. Rbe1 {[%clk 0:02:10]}  Nxd3 {[%clk 0:01:33]} 22. Qxd3 {[%clk 0:02:09]}  f4 {[%clk 0:01:33]} 23. Nde4 {[%clk 0:01:58]}  Bf5 {[%clk 0:01:30]} 24. Ra1 {[%clk 0:01:52]}  Qg6 {[%clk 0:01:23]} 25. b4 {[%clk 0:01:43]}  Bd4 {[%clk 0:01:19]} 26. Rac1 {[%clk 0:01:07]}  axb4 {[%clk 0:01:18]} 27. axb4 {[%clk 0:01:08]}  Ra3 {[%clk 0:01:17]} 28. Rfe1 {[%clk 0:00:55]}  Rfa8 {[%clk 0:01:09]} 29. Qd1 {[%clk 0:00:42]}  Kf7 {[%clk 0:00:56]} 30. Nb5 {[%clk 0:00:37]}  Ra2 {[%clk 0:00:55]} 31. Re2 {[%clk 0:00:37]}  Be3 {[%clk 0:00:40]} 32. Rb1 {[%clk 0:00:26]}  Bxe4 {[%clk 0:00:40]} 33. fxe4 {[%clk 0:00:17]}  Qxe4 {[%clk 0:00:41]} 34. Nxc7 {[%clk 0:00:10]}  Qxb1 {[%clk 0:00:21]} 35. Qxb1 {[%clk 0:00:07]}  Ra1 {[%clk 0:00:20]} 36. Re1 {[%clk 0:00:07]}  Rxb1 {[%clk 0:00:20]} 37. Rxb1 {[%clk 0:00:08]}  Rg8 {[%clk 0:00:11]} 38. Nb5 {[%clk 0:00:08]}  Rg6 {[%clk 0:00:11]} 39. Rf1 {[%clk 0:00:05]}  Ke8 {[%clk 0:00:09]} 40. g3 {[%clk 0:00:04]}  Kd7 {[%clk 0:00:09]} 41. gxf4 {[%clk 0:00:04]}  exf4 {[%clk 0:00:09]} 42. Bf2 {[%clk 0:00:05]}  Nf6 {[%clk 0:00:08]} 43. Bxe3 {[%clk 0:00:05]}  fxe3 {[%clk 0:00:09]} 44. Re1 {[%clk 0:00:05]}  Ng4 {[%clk 0:00:09]} 45. h3 {[%clk 0:00:05]}  Nf2+ {[%clk 0:00:09]} 46. Kh2 {[%clk 0:00:06]}  Nd3 {[%clk 0:00:05]} 47. Rxe3 {[%clk 0:00:06]}  Nxb4 {[%clk 0:00:06]} 48. Rf3 {[%clk 0:00:05]}  Na6 {[%clk 0:00:06]} 49. Nd4 {[%clk 0:00:05]}  Nc5 {[%clk 0:00:04]} 50. Rf7+ {[%clk 0:00:05]}  Ke8 {[%clk 0:00:04]} 51. Rh7 {[%clk 0:00:05]}  Rf6 {[%clk 0:00:04]} 52. Kg2 {[%clk 0:00:04]}  Rf4 {[%clk 0:00:04]} 53. Ne6 {[%clk 0:00:04]}  Nxe6 {[%clk 0:00:04]} 54. dxe6 {[%clk 0:00:05]}  Rxc4 {[%clk 0:00:04]} 55. Rxb7 {[%clk 0:00:06]}  Re4 {[%clk 0:00:04]} 56. Rh7 {[%clk 0:00:05]} 1/2-1/2


[Site "https://www.chess.com"]

[Event "Titled Tuesday Blitz May 4 2021"]
[White "Juhasz, Agoston"]
[Black "Baches Garcia, Guillermo"]
[WhiteFideId "778346"]
[BlackFideId "2209764"]
[WhiteElo "2211"]
[BlackElo "2430"]
[Result "1-0"]
[Round "08"]
[TimeControl "180+1"]
[Date "2021.05.04"]
[WhiteClock "0:00:04"]
[BlackClock "0:00:09"]

1. e4 {[%clk 0:03:00]}  c5 {[%clk 0:03:00]} 2. Nf3 {[%clk 0:02:59]}  d6 {[%clk 0:03:00]} 3. Bc4 {[%clk 0:02:55]}  Nf6 {[%clk 0:02:59]} 4. d3 {[%clk 0:02:52]}  e6 {[%clk 0:02:59]} 5. O-O {[%clk 0:02:51]}  Be7 {[%clk 0:02:59]} 6. Qe2 {[%clk 0:02:46]}  O-O {[%clk 0:02:59]} 7. Rd1 {[%clk 0:02:44]}  a6 {[%clk 0:02:54]} 8. a4 {[%clk 0:02:40]}  Nc6 {[%clk 0:02:51]} 9. c3 {[%clk 0:02:39]}  Rb8 {[%clk 0:02:47]} 10. Na3 {[%clk 0:02:27]}  Ne5 {[%clk 0:02:32]} 11. Nxe5 {[%clk 0:02:05]}  dxe5 {[%clk 0:02:33]} 12. f4 {[%clk 0:02:05]}  Bd6 {[%clk 0:02:16]} 13. d4 {[%clk 0:01:43]}  cxd4 {[%clk 0:01:57]} 14. cxd4 {[%clk 0:01:42]}  exd4 {[%clk 0:01:48]} 15. e5 {[%clk 0:01:18]}  Bc5 {[%clk 0:01:39]} 16. Kh1 {[%clk 0:00:48]}  Nd5 {[%clk 0:01:28]} 17. Nc2 {[%clk 0:00:47]}  Qh4 {[%clk 0:01:13]} 18. g3 {[%clk 0:00:37]}  Qh3 {[%clk 0:01:13]} 19. Nxd4 {[%clk 0:00:30]}  b5 {[%clk 0:01:09]} 20. Bxd5 {[%clk 0:00:21]}  exd5 {[%clk 0:00:59]} 21. Qg2 {[%clk 0:00:17]}  Qh5 {[%clk 0:00:52]} 22. Be3 {[%clk 0:00:15]}  Bg4 {[%clk 0:00:47]} 23. Rd3 {[%clk 0:00:13]}  Bxd4 {[%clk 0:00:40]} 24. Bxd4 {[%clk 0:00:14]}  Be2 {[%clk 0:00:40]} 25. g4 {[%clk 0:00:07]}  Bxg4 {[%clk 0:00:29]} 26. Rg1 {[%clk 0:00:06]}  Rbc8 {[%clk 0:00:10]} 27. Qxg4 {[%clk 0:00:04]}  Qxg4 {[%clk 0:00:10]} 28. Rxg4 {[%clk 0:00:04]}  g6 {[%clk 0:00:11]} 29. Rg1 {[%clk 0:00:03]}  Rc2 {[%clk 0:00:10]} 30. axb5 {[%clk 0:00:03]}  axb5 {[%clk 0:00:10]} 31. f5 {[%clk 0:00:03]}  Rfc8 {[%clk 0:00:10]} 32. e6 {[%clk 0:00:03]}  Re2 {[%clk 0:00:09]} 33. exf7+ {[%clk 0:00:02]}  Kxf7 {[%clk 0:00:10]} 34. fxg6+ {[%clk 0:00:03]}  hxg6 {[%clk 0:00:10]} 35. Rf1+ {[%clk 0:00:04]}  Kg8 {[%clk 0:00:09]} 36. Rdf3 {[%clk 0:00:03]}  Rcc2 {[%clk 0:00:09]} 37. Rf8+ {[%clk 0:00:03]}  Kh7 {[%clk 0:00:09]} 38. Rh8# {[%clk 0:00:04]} 1-0


[Site "https://www.chess.com"]

[Event "Titled Tuesday Blitz May 4 2021"]
[White "Kalogeris, Ioannis"]
[Black "Kubatko, Ivan"]
[WhiteFideId "4239563"]
[BlackFideId "24111473"]
[WhiteElo "2287"]
[BlackElo "2285"]
[Result "0-1"]
[Round "08"]
[TimeControl "180+1"]
[Date "2021.05.04"]
[WhiteClock "0:01:20"]
[BlackClock "0:00:02"]

1. e4 {[%clk 0:03:00]}  d5 {[%clk 0:03:00]} 2. exd5 {[%clk 0:03:00]}  Qxd5 {[%clk 0:03:00]} 3. Nc3 {[%clk 0:03:00]}  Qa5 {[%clk 0:03:00]} 4. Bc4 {[%clk 0:02:57]}  Nf6 {[%clk 0:03:00]} 5. d3 {[%clk 0:02:56]}  Bg4 {[%clk 0:03:00]} 6. f3 {[%clk 0:02:56]}  Bd7 {[%clk 0:03:00]} 7. Bd2 {[%clk 0:02:56]}  Qb6 {[%clk 0:03:00]} 8. Bb3 {[%clk 0:02:52]}  e6 {[%clk 0:02:53]} 9. Qe2 {[%clk 0:02:52]}  Nc6 {[%clk 0:02:51]} 10. Be3 {[%clk 0:02:49]}  Nd4 {[%clk 0:02:51]} 11. Qf2 {[%clk 0:02:49]}  Bc5 {[%clk 0:02:38]} 12. Nge2 {[%clk 0:02:47]}  Nxb3 {[%clk 0:02:25]} 13. axb3 {[%clk 0:02:42]}  Bxe3 {[%clk 0:02:25]} 14. Qg3 {[%clk 0:02:42]}  O-O {[%clk 0:02:12]} 15. h4 {[%clk 0:02:36]}  Nh5 {[%clk 0:01:59]} 16. Qg4 {[%clk 0:02:34]}  Bf2+ {[%clk 0:01:52]} 17. Kf1 {[%clk 0:02:31]}  Nf6 {[%clk 0:01:43]} 18. Qf4 {[%clk 0:02:29]}  e5 {[%clk 0:01:37]} 19. Qxe5 {[%clk 0:02:28]}  Rfe8 {[%clk 0:01:36]} 20. Qg5 {[%clk 0:02:28]}  h6 {[%clk 0:01:33]} 21. Qf4 {[%clk 0:02:23]}  Nh5 {[%clk 0:01:26]} 22. Qc4 {[%clk 0:02:06]}  Bg3 {[%clk 0:01:11]} 23. d4 {[%clk 0:02:03]}  Be6 {[%clk 0:00:56]} 24. Qd3 {[%clk 0:01:52]}  Nf4 {[%clk 0:00:55]} 25. Nxf4 {[%clk 0:01:49]}  Bxf4 {[%clk 0:00:56]} 26. Ne2 {[%clk 0:01:45]}  Qd6 {[%clk 0:00:51]} 27. c4 {[%clk 0:01:42]}  h5 {[%clk 0:00:38]} 28. c5 {[%clk 0:01:42]}  Qc6 {[%clk 0:00:13]} 29. Nxf4 {[%clk 0:01:40]}  Rad8 {[%clk 0:00:13]} 30. b4 {[%clk 0:01:38]}  b5 {[%clk 0:00:10]} 31. b3 {[%clk 0:01:34]}  Bd5 {[%clk 0:00:05]} 32. Kf2 {[%clk 0:01:34]}  f6 {[%clk 0:00:03]} 33. Nxh5 {[%clk 0:01:29]}  Bf7 {[%clk 0:00:03]} 34. Nf4 {[%clk 0:01:29]}  Re5 {[%clk 0:00:01]} 35. dxe5 {[%clk 0:01:28]}  Rxd3 {[%clk 0:00:01]} 36. Nxd3 {[%clk 0:01:29]}  Qd5 {[%clk 0:00:01]} 37. Rhd1 {[%clk 0:01:28]}  Qd4+ {[%clk 0:00:02]} 38. Ke2 {[%clk 0:01:27]}  fxe5 {[%clk 0:00:02]} 39. Rxa7 {[%clk 0:01:27]}  Bxb3 {[%clk 0:00:02]} 40. Rd2 {[%clk 0:01:24]}  Bc4 {[%clk 0:00:02]} 41. Rxc7 {[%clk 0:01:24]}  e4 {[%clk 0:00:02]} 42. Rc6 {[%clk 0:01:20]}  exd3+ {[%clk 0:00:02]} 0-1


[Site "https://www.chess.com"]

[Event "Titled Tuesday Blitz May 4 2021"]
[White "Kanyamarala, Tarun"]
[Black "Girish, A. Koushik"]
[WhiteFideId "45004714"]
[BlackFideId "5038448"]
[WhiteElo "2086"]
[BlackElo "2387"]
[Result "0-1"]
[Round "08"]
[TimeControl "180+1"]
[Date "2021.05.04"]
[WhiteClock "0:00:17"]
[BlackClock "0:00:24"]

1. d4 {[%clk 0:02:58]}  Nf6 {[%clk 0:02:59]} 2. c4 {[%clk 0:02:57]}  e6 {[%clk 0:03:00]} 3. Nc3 {[%clk 0:02:57]}  Bb4 {[%clk 0:02:59]} 4. f3 {[%clk 0:02:58]}  c5 {[%clk 0:02:52]} 5. d5 {[%clk 0:02:58]}  O-O {[%clk 0:02:52]} 6. e4 {[%clk 0:02:55]}  d6 {[%clk 0:02:51]} 7. Bd2 {[%clk 0:02:37]}  Re8 {[%clk 0:02:45]} 8. Nge2 {[%clk 0:02:36]}  Nbd7 {[%clk 0:02:23]} 9. Ng3 {[%clk 0:02:27]}  Ne5 {[%clk 0:02:23]} 10. Be2 {[%clk 0:02:25]}  h5 {[%clk 0:02:20]} 11. O-O {[%clk 0:02:16]}  h4 {[%clk 0:02:20]} 12. Nh1 {[%clk 0:02:16]}  exd5 {[%clk 0:02:11]} 13. cxd5 {[%clk 0:02:16]}  c4 {[%clk 0:02:10]} 14. Nf2 {[%clk 0:02:08]}  Bd7 {[%clk 0:01:58]} 15. Kh1 {[%clk 0:01:59]}  b5 {[%clk 0:01:57]} 16. a4 {[%clk 0:01:46]}  a6 {[%clk 0:01:56]} 17. axb5 {[%clk 0:01:30]}  axb5 {[%clk 0:01:56]} 18. b3 {[%clk 0:01:29]}  Rxa1 {[%clk 0:01:31]} 19. Qxa1 {[%clk 0:01:28]}  Qb6 {[%clk 0:01:32]} 20. Nfd1 {[%clk 0:01:11]}  h3 {[%clk 0:01:16]} 21. g3 {[%clk 0:01:07]}  Bc5 {[%clk 0:00:47]} 22. bxc4 {[%clk 0:01:01]}  bxc4 {[%clk 0:00:46]} 23. Nb2 {[%clk 0:00:56]}  Bd4 {[%clk 0:00:37]} 24. Nxc4 {[%clk 0:00:49]}  Nxc4 {[%clk 0:00:37]} 25. Bxc4 {[%clk 0:00:50]}  Qc5 {[%clk 0:00:29]} 26. Bd3 {[%clk 0:00:50]}  Rc8 {[%clk 0:00:24]} 27. Rc1 {[%clk 0:00:36]}  Bxc3 {[%clk 0:00:24]} 28. Qxc3 {[%clk 0:00:28]}  Qf2 {[%clk 0:00:23]} 29. Qxc8+ {[%clk 0:00:20]}  Bxc8 {[%clk 0:00:23]} 30. Rxc8+ {[%clk 0:00:18]}  Kh7 {[%clk 0:00:24]} 31. e5+ {[%clk 0:00:17]}  g6 {[%clk 0:00:24]} 0-1


[Site "https://www.chess.com"]

[Event "Titled Tuesday Blitz May 4 2021"]
[White "Kapitanchuk, Tomas"]
[Black "Zhukov, Anton"]
[WhiteFideId "135046"]
[BlackFideId "34187534"]
[WhiteElo "1955"]
[BlackElo "2172"]
[Result "0-1"]
[Round "08"]
[TimeControl "180+1"]
[Date "2021.05.04"]
[WhiteClock "0:00:38"]
[BlackClock "0:00:20"]

1. e4 {[%clk 0:03:00]}  c5 {[%clk 0:02:59]} 2. Nf3 {[%clk 0:03:01]}  d6 {[%clk 0:02:58]} 3. Bb5+ {[%clk 0:03:00]}  Bd7 {[%clk 0:02:58]} 4. Bxd7+ {[%clk 0:03:00]}  Qxd7 {[%clk 0:02:59]} 5. c4 {[%clk 0:03:00]}  Nf6 {[%clk 0:02:59]} 6. Nc3 {[%clk 0:02:58]}  g6 {[%clk 0:02:59]} 7. d4 {[%clk 0:02:57]}  cxd4 {[%clk 0:02:59]} 8. Nxd4 {[%clk 0:02:58]}  Bg7 {[%clk 0:02:59]} 9. f3 {[%clk 0:02:59]}  O-O {[%clk 0:02:59]} 10. Be3 {[%clk 0:02:59]}  Rc8 {[%clk 0:02:54]} 11. b3 {[%clk 0:02:59]}  Nc6 {[%clk 0:02:30]} 12. Qd2 {[%clk 0:02:58]}  Nxd4 {[%clk 0:02:29]} 13. Bxd4 {[%clk 0:02:57]}  Qd8 {[%clk 0:02:29]} 14. O-O {[%clk 0:02:52]}  Nd7 {[%clk 0:02:29]} 15. Bxg7 {[%clk 0:02:45]}  Kxg7 {[%clk 0:02:27]} 16. h4 {[%clk 0:02:44]}  a6 {[%clk 0:02:18]} 17. h5 {[%clk 0:02:41]}  b5 {[%clk 0:02:16]} 18. h6+ {[%clk 0:02:38]}  Kg8 {[%clk 0:02:14]} 19. cxb5 {[%clk 0:02:31]}  axb5 {[%clk 0:01:47]} 20. Rf2 {[%clk 0:02:30]}  Qa5 {[%clk 0:01:37]} 21. Rc1 {[%clk 0:02:22]}  Ne5 {[%clk 0:01:28]} 22. f4 {[%clk 0:01:43]}  Ng4 {[%clk 0:01:15]} 23. Qd4 {[%clk 0:01:20]}  e5 {[%clk 0:01:09]} 24. fxe5 {[%clk 0:01:21]}  dxe5 {[%clk 0:01:09]} 25. Qd6 {[%clk 0:01:04]}  Rxc3 {[%clk 0:00:44]} 26. Rcf1 {[%clk 0:00:53]}  Qa7 {[%clk 0:00:33]} 27. Qd2 {[%clk 0:00:38]}  Rac8 {[%clk 0:00:24]} 28. Qg5 {[%clk 0:00:38]}  Nxf2 {[%clk 0:00:20]} 0-1


[Site "https://www.chess.com"]

[Event "Titled Tuesday Blitz May 4 2021"]
[White "Kaufman, Raymond"]
[Black "Heinemann, Josefine"]
[WhiteFideId "2015056"]
[BlackFideId "12900460"]
[WhiteElo "2321"]
[BlackElo "2300"]
[Result "0-1"]
[Round "08"]
[TimeControl "180+1"]
[Date "2021.05.04"]
[WhiteClock "0:00:25"]
[BlackClock "0:00:51"]

1. d4 {[%clk 0:03:00]}  Nf6 {[%clk 0:02:59]} 2. c4 {[%clk 0:02:58]}  g6 {[%clk 0:02:59]} 3. f3 {[%clk 0:02:57]}  d5 {[%clk 0:02:56]} 4. cxd5 {[%clk 0:02:57]}  Nxd5 {[%clk 0:02:57]} 5. e4 {[%clk 0:02:57]}  Nb6 {[%clk 0:02:57]} 6. Nc3 {[%clk 0:02:58]}  Bg7 {[%clk 0:02:57]} 7. Be3 {[%clk 0:02:58]}  O-O {[%clk 0:02:55]} 8. Qd2 {[%clk 0:02:59]}  Nc6 {[%clk 0:02:56]} 9. O-O-O {[%clk 0:02:59]}  e5 {[%clk 0:02:55]} 10. d5 {[%clk 0:02:57]}  Nd4 {[%clk 0:02:55]} 11. f4 {[%clk 0:02:50]}  c5 {[%clk 0:02:38]} 12. fxe5 {[%clk 0:02:49]}  Bxe5 {[%clk 0:02:38]} 13. Nf3 {[%clk 0:02:49]}  Nxf3 {[%clk 0:02:35]} 14. gxf3 {[%clk 0:02:50]}  Bd7 {[%clk 0:02:21]} 15. h4 {[%clk 0:02:16]}  Na4 {[%clk 0:02:12]} 16. Nxa4 {[%clk 0:02:04]}  Bxa4 {[%clk 0:02:13]} 17. b3 {[%clk 0:02:03]}  Bd7 {[%clk 0:02:11]} 18. h5 {[%clk 0:02:03]}  Qb6 {[%clk 0:01:45]} 19. hxg6 {[%clk 0:01:47]}  fxg6 {[%clk 0:01:42]} 20. f4 {[%clk 0:01:40]}  Bd4 {[%clk 0:01:33]} 21. e5 {[%clk 0:01:26]}  Bf5 {[%clk 0:01:23]} 22. Bxd4 {[%clk 0:01:22]}  cxd4 {[%clk 0:01:22]} 23. Qxd4 {[%clk 0:01:20]}  Rac8+ {[%clk 0:01:19]} 24. Bc4 {[%clk 0:01:03]}  Qxd4 {[%clk 0:01:19]} 25. Rxd4 {[%clk 0:01:04]}  b5 {[%clk 0:01:19]} 26. e6 {[%clk 0:00:57]}  Kg7 {[%clk 0:01:03]} 27. e7 {[%clk 0:00:53]}  Rfe8 {[%clk 0:01:00]} 28. d6 {[%clk 0:00:54]}  bxc4 {[%clk 0:00:59]} 29. d7 {[%clk 0:00:51]}  Bxd7 {[%clk 0:00:59]} 30. Rxd7 {[%clk 0:00:50]}  cxb3+ {[%clk 0:01:00]} 31. Kb2 {[%clk 0:00:50]}  bxa2 {[%clk 0:01:00]} 32. Rxa7 {[%clk 0:00:46]}  Rc4 {[%clk 0:00:59]} 33. Rh4 {[%clk 0:00:40]}  Re4 {[%clk 0:00:57]} 34. Kxa2 {[%clk 0:00:36]}  R8xe7 {[%clk 0:00:56]} 35. Rxe7+ {[%clk 0:00:37]}  Rxe7 {[%clk 0:00:56]} 36. Kb3 {[%clk 0:00:36]}  Kf6 {[%clk 0:00:56]} 37. Kc4 {[%clk 0:00:35]}  Rd7 {[%clk 0:00:57]} 38. Kc5 {[%clk 0:00:29]}  h5 {[%clk 0:00:52]} 39. Kc6 {[%clk 0:00:27]}  Rd1 {[%clk 0:00:51]} 40. Kc5 {[%clk 0:00:25]}  Kf5 {[%clk 0:00:51]} 41. Kc4 {[%clk 0:00:25]}  Rf1 {[%clk 0:00:51]} 0-1


[Site "https://www.chess.com"]

[Event "Titled Tuesday Blitz May 4 2021"]
[White "Keymer, Vincent"]
[Black "Quparadze, Giga"]
[WhiteFideId "12940690"]
[BlackFideId "13602250"]
[WhiteElo "2474"]
[BlackElo "2658"]
[Result "0-1"]
[Round "08"]
[TimeControl "180+1"]
[Date "2021.05.04"]
[WhiteClock "0:00:02"]
[BlackClock "0:00:08"]

1. Nf3 {[%clk 0:03:00]}  c5 {[%clk 0:02:59]} 2. c4 {[%clk 0:03:00]}  Nc6 {[%clk 0:02:57]} 3. Nc3 {[%clk 0:03:00]}  Nf6 {[%clk 0:02:57]} 4. g3 {[%clk 0:03:00]}  d5 {[%clk 0:02:57]} 5. d4 {[%clk 0:02:59]}  e6 {[%clk 0:02:55]} 6. cxd5 {[%clk 0:02:54]}  Nxd5 {[%clk 0:02:51]} 7. Bg2 {[%clk 0:02:45]}  cxd4 {[%clk 0:02:48]} 8. Nxd4 {[%clk 0:02:44]}  Nxc3 {[%clk 0:02:48]} 9. bxc3 {[%clk 0:02:45]}  Nxd4 {[%clk 0:02:48]} 10. Qxd4 {[%clk 0:02:45]}  Qxd4 {[%clk 0:02:44]} 11. cxd4 {[%clk 0:02:46]}  Bd6 {[%clk 0:02:44]} 12. h4 {[%clk 0:02:28]}  Rb8 {[%clk 0:02:43]} 13. h5 {[%clk 0:02:24]}  h6 {[%clk 0:02:42]} 14. O-O {[%clk 0:02:21]}  b6 {[%clk 0:02:42]} 15. e4 {[%clk 0:02:21]}  Ba6 {[%clk 0:02:41]} 16. Rd1 {[%clk 0:02:21]}  Be2 {[%clk 0:02:35]} 17. Rd2 {[%clk 0:02:14]}  Bxh5 {[%clk 0:02:35]} 18. e5 {[%clk 0:02:07]}  Bb4 {[%clk 0:02:34]} 19. Bc6+ {[%clk 0:02:01]}  Ke7 {[%clk 0:02:28]} 20. Rc2 {[%clk 0:02:01]}  Rhc8 {[%clk 0:02:25]} 21. a3 {[%clk 0:01:16]}  Bg6 {[%clk 0:02:15]} 22. axb4 {[%clk 0:01:08]}  Bxc2 {[%clk 0:02:12]} 23. Rxa7+ {[%clk 0:01:09]}  Kf8 {[%clk 0:02:12]} 24. b5 {[%clk 0:01:09]}  Kg8 {[%clk 0:01:48]} 25. Ba3 {[%clk 0:01:07]}  Rd8 {[%clk 0:01:48]} 26. Bd6 {[%clk 0:01:01]}  Rbc8 {[%clk 0:01:48]} 27. Ra6 {[%clk 0:00:50]}  Bb3 {[%clk 0:01:21]} 28. Rxb6 {[%clk 0:00:45]}  Ra8 {[%clk 0:01:21]} 29. Ra6 {[%clk 0:00:21]}  Rac8 {[%clk 0:01:07]} 30. Ra7 {[%clk 0:00:16]}  Bc4 {[%clk 0:01:05]} 31. g4 {[%clk 0:00:13]}  f6 {[%clk 0:00:58]} 32. Kh2 {[%clk 0:00:13]}  Bd5 {[%clk 0:00:37]} 33. Bxd5 {[%clk 0:00:13]}  exd5 {[%clk 0:00:38]} 34. b6 {[%clk 0:00:12]}  Rb8 {[%clk 0:00:20]} 35. b7 {[%clk 0:00:08]}  Kf7 {[%clk 0:00:18]} 36. Kg3 {[%clk 0:00:04]}  Rxd6 {[%clk 0:00:18]} 37. exd6 {[%clk 0:00:03]}  Ke6 {[%clk 0:00:18]} 38. Kf4 {[%clk 0:00:03]}  g5+ {[%clk 0:00:18]} 39. Kg3 {[%clk 0:00:03]}  Kxd6 {[%clk 0:00:18]} 40. f4 {[%clk 0:00:02]}  Kc7 {[%clk 0:00:18]} 41. Ra6 {[%clk 0:00:02]}  Rxb7 {[%clk 0:00:18]} 42. Rxf6 {[%clk 0:00:02]}  Rb3+ {[%clk 0:00:18]} 43. Kf2 {[%clk 0:00:03]}  Rd3 {[%clk 0:00:18]} 44. Rxh6 {[%clk 0:00:01]}  gxf4 {[%clk 0:00:17]} 45. g5 {[%clk 0:00:02]}  Rg3 {[%clk 0:00:17]} 46. Rg6 {[%clk 0:00:01]}  Kd7 {[%clk 0:00:17]} 47. Rg7+ {[%clk 0:00:02]}  Ke6 {[%clk 0:00:18]} 48. Rg6+ {[%clk 0:00:03]}  Kf5 {[%clk 0:00:18]} 49. Rd6 {[%clk 0:00:03]}  Ke4 {[%clk 0:00:18]} 50. g6 {[%clk 0:00:04]}  Kxd4 {[%clk 0:00:19]} 51. Re6 {[%clk 0:00:04]}  Kd3 {[%clk 0:00:17]} 52. Rf6 {[%clk 0:00:04]}  Ke4 {[%clk 0:00:17]} 53. Re6+ {[%clk 0:00:03]}  Kf5 {[%clk 0:00:17]} 54. Rd6 {[%clk 0:00:04]}  Ke5 {[%clk 0:00:17]} 55. Ra6 {[%clk 0:00:04]}  d4 {[%clk 0:00:18]} 56. Ra5+ {[%clk 0:00:04]}  Ke4 {[%clk 0:00:18]} 57. Ra6 {[%clk 0:00:04]}  d3 {[%clk 0:00:18]} 58. Rd6 {[%clk 0:00:05]}  Ke5 {[%clk 0:00:17]} 59. Ra6 {[%clk 0:00:05]}  Kf5 {[%clk 0:00:16]} 60. Rd6 {[%clk 0:00:05]}  Ke4 {[%clk 0:00:15]} 61. Re6+ {[%clk 0:00:05]}  Kd4 {[%clk 0:00:16]} 62. Rd6+ {[%clk 0:00:05]}  Kc3 {[%clk 0:00:16]} 63. Ke1 {[%clk 0:00:05]}  Rg2 {[%clk 0:00:15]} 64. Kf1 {[%clk 0:00:05]}  Rg5 {[%clk 0:00:15]} 65. Ke1 {[%clk 0:00:05]}  Re5+ {[%clk 0:00:12]} 66. Kf2 {[%clk 0:00:04]}  d2 {[%clk 0:00:11]} 67. Kf3 {[%clk 0:00:04]}  Rg5 {[%clk 0:00:10]} 68. Ke2 {[%clk 0:00:02]}  Rg2+ {[%clk 0:00:09]} 69. Kf3 {[%clk 0:00:02]}  Rxg6 {[%clk 0:00:09]} 70. Rd5 {[%clk 0:00:02]}  Rg1 {[%clk 0:00:08]} 0-1


[Site "https://www.chess.com"]

[Event "Titled Tuesday Blitz May 4 2021"]
[White "Kiselev, Gennady"]
[Black "Ranindu2003"]
[WhiteFideId "4117107"]
[WhiteElo "2323"]
[BlackElo "2582"]
[Result "0-1"]
[Round "08"]
[TimeControl "180+1"]
[Date "2021.05.04"]
[WhiteClock "0:00:02"]
[BlackClock "0:00:19"]

1. e4 {[%clk 0:02:58]}  e6 {[%clk 0:02:50]} 2. d4 {[%clk 0:02:56]}  d5 {[%clk 0:02:50]} 3. e5 {[%clk 0:02:56]}  c5 {[%clk 0:02:49]} 4. c3 {[%clk 0:02:55]}  Nc6 {[%clk 0:02:46]} 5. Nf3 {[%clk 0:02:53]}  Qb6 {[%clk 0:02:44]} 6. Be2 {[%clk 0:02:52]}  f6 {[%clk 0:02:42]} 7. O-O {[%clk 0:02:49]}  g6 {[%clk 0:02:34]} 8. c4 {[%clk 0:02:47]}  Bg7 {[%clk 0:02:30]} 9. cxd5 {[%clk 0:02:40]}  exd5 {[%clk 0:02:31]} 10. Nc3 {[%clk 0:02:38]}  Nge7 {[%clk 0:02:30]} 11. dxc5 {[%clk 0:02:37]}  Qxc5 {[%clk 0:02:26]} 12. Be3 {[%clk 0:02:36]}  Qa5 {[%clk 0:02:21]} 13. exf6 {[%clk 0:02:16]}  Bxf6 {[%clk 0:02:22]} 14. Bh6 {[%clk 0:01:58]}  Bf5 {[%clk 0:02:11]} 15. a3 {[%clk 0:01:51]}  O-O-O {[%clk 0:02:08]} 16. b4 {[%clk 0:01:49]}  Qc7 {[%clk 0:02:02]} 17. Rc1 {[%clk 0:01:47]}  d4 {[%clk 0:01:59]} 18. Nb5 {[%clk 0:01:45]}  Qb6 {[%clk 0:01:49]} 19. a4 {[%clk 0:01:35]}  d3 {[%clk 0:01:43]} 20. Be3 {[%clk 0:01:23]}  Qa6 {[%clk 0:01:16]} 21. Nxa7+ {[%clk 0:01:18]}  Kb8 {[%clk 0:01:14]} 22. b5 {[%clk 0:01:16]}  dxe2 {[%clk 0:01:09]} 23. Qxe2 {[%clk 0:01:15]}  Qxa4 {[%clk 0:00:50]} 24. bxc6 {[%clk 0:01:14]}  Nxc6 {[%clk 0:00:50]} 25. Nxc6+ {[%clk 0:00:57]}  bxc6 {[%clk 0:00:51]} 26. Bg5 {[%clk 0:00:29]}  Rhe8 {[%clk 0:00:42]} 27. Rb1+ {[%clk 0:00:16]}  Bxb1 {[%clk 0:00:38]} 28. Rxb1+ {[%clk 0:00:16]}  Kc8 {[%clk 0:00:39]} 29. Qf1 {[%clk 0:00:10]}  Bxg5 {[%clk 0:00:35]} 30. Nxg5 {[%clk 0:00:08]}  Rd7 {[%clk 0:00:24]} 31. h3 {[%clk 0:00:06]}  Red8 {[%clk 0:00:23]} 32. Kh2 {[%clk 0:00:04]}  Rd1 {[%clk 0:00:18]} 33. Rxd1 {[%clk 0:00:02]}  Rxd1 {[%clk 0:00:19]} 0-1


[Site "https://www.chess.com"]